fUST/lending_fUST_20240219
["ID","MTS","AMOUNT","RATE_DAILY","PERIOD"]
[314416344,1708321848712,-151.0,0.00021114,2]
[314416345,1708321848721,-153.540512,0.00021114,2]
[314416346,1708321848730,-151.0,0.00021114,2]
[314416347,1708321848740,-151.0,0.00021114,2]
[314416348,1708321848749,-151.0,0.00021114,2]
[314416349,1708321848758,-151.0,0.00021114,2]
[314416350,1708321848767,-151.0,0.00021114,2]
[314416351,1708321848776,-151.0,0.00021114,2]
[314416352,1708321848785,-151.0,0.00021114,2]
[314416353,1708321848794,-151.0,0.00021114,2]
[314416354,1708321848803,-151.0,0.00021114,2]
[314416355,1708321848812,-151.0,0.00021114,2]
[314416356,1708321848821,-151.0,0.00021114,2]
[314416357,1708321848831,-151.0,0.00021114,2]
[314416358,1708321848842,-276.165257,0.00021114,2]
[314416359,1708321848851,-151.0,0.00021115,2]
[314416360,1708321848861,-151.0,0.00021115,2]
[314416361,1708321848870,-151.0,0.00021115,2]
[314416362,1708321848880,-156.081525,0.00021115,2]
[314416363,1708321848889,-151.0,0.00021116,2]
[314416364,1708321848898,-151.0,0.00021116,2]
[314416365,1708321848907,-204.067301,0.00021117,2]
[314416366,1708321848916,-276000.0,0.00021118,2]
[314416367,1708321848926,-2489.9788729,0.00021177,2]
[314416368,1708321848936,-286.70956474,0.00021188,2]
[314416369,1708321848945,-13189.23350689,0.00021188,10]
[314416370,1708321848954,-239.7316095,0.000212,2]
[314416371,1708321848962,-200.3472215,0.000212,2]
[314416372,1708321848971,-200.3472215,0.000212,2]
[314416373,1708321848980,-153.0,0.000212,2]
[314416374,1708321848991,-200.3472215,0.000212,2]
[314416375,1708321849000,-230.4313666,0.000212,2]
[314416376,1708321849009,-153.0,0.000212,2]
[314416377,1708321849018,-153.0,0.000212,2]
[314416378,1708321849026,-306.9009655,0.000213,2]
[314416379,1708321849036,-306.0,0.000213,2]
[314416380,1708321849045,-153.0,0.0002137,2]
[314416381,1708321849054,-300.0,0.00021451,2]
[314416382,1708321849063,-153.0,0.000216,2]
[314416383,1708321849072,-4055.27613006,0.00021799,2]
[314416384,1708321849081,-300.0,0.00021809,2]
[314416385,1708321849090,-50000.0,0.00021906,2]
[314416386,1708321849099,-500.0,0.00021917,2]
[314416387,1708321849108,-500.0,0.00021917,2]
[314416388,1708321849117,-399.71699646,0.00021917,2]
[314416389,1708321849126,-255.29670976,0.00021999,2]
[314416390,1708321849135,-212.26535568,0.00022,2]
[314416391,1708321849144,-500.0,0.00022,7]
[314416392,1708321849153,-500.0,0.00022,7]
[314416393,1708321849162,-500.0,0.00022,7]
[314416394,1708321849170,-500.0,0.00022,7]
[314416395,1708321849179,-500.0,0.00022,7]
[314416396,1708321849188,-500.0,0.00022,7]
[314416397,1708321849197,-500.0,0.00022,7]
[314416398,1708321849206,-500.0,0.00022,7]
[314416399,1708321849215,-569.21,0.00022,7]
[314416400,1708321849223,-427.92197084,0.00022,2]
[314416401,1708321849232,-580.0,0.00022,2]
[314416402,1708321849241,-327.06780261,0.00022051,2]
[314416403,1708321849250,-300.0,0.00022167,2]
[314416404,1708321849259,-307.2227723,0.00022192,2]
[314416405,1708321849268,-373.2908589,0.00022466,2]
[314416406,1708321849277,-300.0,0.00022526,2]
[314416407,1708321849287,-1000.0,0.00022621,2]
[314416408,1708321849296,-1000.0,0.00022622,2]
[314416409,1708321849305,-1000.0,0.00022633,2]
[314416410,1708321849313,-1000.0,0.00022643,2]
[314416411,1708321849322,-1000.0,0.00022654,2]
[314416412,1708321849331,-1000.0,0.00022658,2]
[314416413,1708321849340,-1000.0,0.00022672,2]
[314416414,1708321849349,-1000.0,0.00022685,2]
[314416415,1708321849359,-1000.0,0.000227,2]
[314416416,1708321849367,-1000.0,0.00022712,2]
[314416417,1708321849377,-1000.0,0.00022723,2]
[314416418,1708321849386,-1000.0,0.00022728,2]
[314416419,1708321849395,-1000.0,0.00022732,2]
[314416420,1708321849404,-480.86602491,0.00022774,2]
[314416421,1708321849413,-1000.0,0.00022838,2]
[314416422,1708321849422,-1000.0,0.0002284,2]
[314416423,1708321849434,-1000.0,0.00022849,2]
[314416424,1708321849444,-1000.0,0.00022869,2]
[314416425,1708321849453,-153.0,0.00022877,2]
[314416426,1708321849462,-153.0,0.00022877,2]
[314416427,1708321849471,-153.0,0.00022877,2]
[314416428,1708321849480,-153.0,0.00022877,2]
[314416429,1708321849489,-153.0,0.00022877,2]
[314416430,1708321849497,-153.0,0.00022877,2]
[314416431,1708321849507,-153.0,0.00022877,2]
[314416432,1708321849516,-153.0,0.00022877,2]
[314416433,1708321849526,-153.0,0.00022877,2]
[314416434,1708321849535,-153.0,0.00022877,2]
[314416435,1708321849544,-300.0,0.00022884,2]
[314416436,1708321849553,-2000.0,0.00023,2]
[314416437,1708321849563,-928.904,0.00023,2]
[314416438,1708321849572,-259.99549658,0.00023156,2]
[314416439,1708321849581,-300.0,0.00023242,2]
[314416440,1708321849590,-300.0,0.000236,2]
[314416441,1708321849599,-1589.70158376,0.0002388,2]
[314416442,1708321849608,-10220.16000683,0.00023881,2]
[314416443,1708321849617,-241.76355709,0.000239,2]
[314416444,1708321849627,-300.0,0.00023958,2]
[314416445,1708321849637,-500.0,0.00023999,2]
[314416446,1708321849646,-500.0,0.00023999,2]
[314416447,1708321849655,-500.0,0.00023999,2]
[314416448,1708321849664,-500.0,0.00023999,2]
[314416449,1708321849674,-198.34910735,0.00023999,2]
[314416450,1708321849684,-166.36687319,0.00023999,2]
[314416451,1708321849694,-500.0,0.00023999,2]
[314416452,1708321849702,-500.0,0.00023999,2]
[314416453,1708321849712,-500.0,0.00023999,2]
[314416454,1708321849720,-386.42491638,0.00023999,2]
[314416455,1708321849730,-500.0,0.00023999,2]
[314416456,1708321849739,-500.0,0.00023999,2]
[314416457,1708321849747,-500.0,0.00023999,2]
[314416458,1708321849756,-500.0,0.00023999,2]
[314416459,1708321849765,-500.0,0.00023999,2]
[314416460,1708321849774,-500.0,0.00023999,2]
[314416461,1708321849782,-500.0,0.00023999,2]
[314416462,1708321849791,-500.0,0.00023999,2]
[314416463,1708321849801,-500.0,0.00023999,2]
[314416464,1708321849809,-475.94867558,0.00023999,2]
[314416465,1708321849818,-500.0,0.00023999,2]
[314416466,1708321849827,-500.0,0.00023999,2]
[314416467,1708321849837,-500.0,0.00023999,2]
[314416468,1708321849850,-500.0,0.00023999,2]
[314416469,1708321849858,-500.0,0.00023999,2]
[314416470,1708321849868,-500.0,0.00023999,2]
[314416471,1708321849878,-352.02119389,0.00023999,2]
[314416472,1708321849887,-500.0,0.00023999,2]
[314416473,1708321849896,-500.0,0.00023999,2]
[314416474,1708321849904,-6006.07379549,0.00024,2]
[314416475,1708321849913,-2005.67375,0.00024,2]
[314416476,1708321849922,-300.0,0.00024316,2]
[314416477,1708321849932,-3144.53864785,0.00024425,2]
[314416478,1708321849941,-50000.0,0.00024498,2]
[314416479,1708321849950,-50000.0,0.00024511,2]
[314416480,1708321849959,-39336.70590525,0.00024525,2]
[314416481,1708321849978,-10663.29409475,0.00024525,2]
[314416482,1708321849987,-24835.01606101,0.00024535,2]
[314416484,1708322112466,3859.08567891,0.00033,120]
[314416485,1708322380165,-213.00508366,0.00020006,2]
[314416486,1708322380186,-250.0,0.00020007,2]
[314416487,1708322380205,-184.273521,0.00020258,2]
[314416488,1708322380225,-1269.0367798,0.00020755,2]
[314416489,1708322380246,-13784.16,0.00020998,3]
[314416490,1708322380267,-15691.31,0.00020998,3]
[314416491,1708322380287,-13076.09,0.00020998,3]
[314416492,1708322380307,-404.06674892,0.00021008,2]
[314416493,1708322380327,-500.0,0.00021008,2]
[314416494,1708322380347,-500.0,0.00021008,2]
[314416495,1708322380366,-500.0,0.00021008,2]
[314416496,1708322380388,-1743.04427453,0.00021008,2]
[314416497,1708322380408,-500.0,0.00021008,2]
[314416498,1708322380427,-500.0,0.00021008,2]
[314416499,1708322380446,-484.55148763,0.00021008,2]
[314416500,1708322380467,-310.78751959,0.00021008,2]
[314416501,1708322380487,-500.0,0.00021008,2]
[314416502,1708322380508,-1743.04427453,0.00021008,2]
[314416503,1708322380527,-500.0,0.00021008,2]
[314416504,1708322380548,-500.0,0.00021008,2]
[314416505,1708322380568,-500.0,0.00021008,2]
[314416506,1708322380587,-500.0,0.00021008,2]
[314416507,1708322380609,-1743.04427453,0.00021008,2]
[314416508,1708322380628,-353.81529881,0.00021008,2]
[314416509,1708322380648,-500.0,0.00021008,2]
[314416510,1708322380667,-500.0,0.00021008,2]
[314416511,1708322380687,-500.0,0.00021008,2]
[314416512,1708322380708,-500.0,0.00021008,2]
[314416513,1708322380729,-500.0,0.00021008,2]
[314416514,1708322380751,-1743.04427453,0.00021008,2]
[314416515,1708322380771,-500.0,0.00021008,2]
[314416516,1708322380791,-500.0,0.00021008,2]
[314416517,1708322380811,-500.0,0.00021008,2]
[314416518,1708322380832,-500.0,0.00021008,2]
[314416519,1708322380853,-542.85558145,0.00021008,2]
[314416520,1708322380874,-1743.04427453,0.00021008,2]
[314416521,1708322380894,-500.0,0.00021008,2]
[314416522,1708322380914,-500.0,0.00021008,2]
[314416523,1708322380934,-500.0,0.00021008,2]
[314416524,1708322380956,-1743.04427453,0.00021008,2]
[314416525,1708322380976,-500.0,0.00021008,2]
[314416526,1708322381001,-324.63488149,0.00021008,2]
[314416527,1708322381023,-500.0,0.00021008,2]
[314416528,1708322381045,-1743.04427453,0.00021008,2]
[314416529,1708322381065,-262.14550096,0.00021008,2]
[314416530,1708322381088,-500.0,0.00021008,2]
[314416531,1708322381109,-500.0,0.00021008,2]
[314416532,1708322381130,-1743.04427453,0.00021008,2]
[314416533,1708322381150,-500.0,0.00021008,2]
[314416534,1708322381170,-500.0,0.00021008,2]
[314416535,1708322381289,-1743.04427453,0.00021008,2]
[314416536,1708322381310,-500.0,0.00021008,2]
[314416537,1708322381331,-500.0,0.00021008,2]
[314416538,1708322381355,-1743.04427453,0.00021008,2]
[314416539,1708322381375,-500.0,0.00021008,2]
[314416540,1708322381395,-500.0,0.00021008,2]
[314416541,1708322381415,-500.0,0.00021008,2]
[314416542,1708322381436,-1743.04427453,0.00021008,2]
[314416543,1708322381456,-500.0,0.00021008,2]
[314416544,1708322381475,-500.0,0.00021008,2]
[314416545,1708322381496,-1743.04427453,0.00021008,2]
[314416546,1708322381516,-500.0,0.00021008,2]
[314416547,1708322381536,-500.0,0.00021008,2]
[314416548,1708322381557,-1743.04427453,0.00021008,2]
[314416549,1708322381577,-500.0,0.00021008,2]
[314416550,1708322381599,-500.0,0.00021008,2]
[314416551,1708322381620,-500.0,0.00021008,2]
[314416552,1708322381641,-1743.04427453,0.00021008,2]
[314416553,1708322381661,-500.0,0.00021008,2]
[314416554,1708322381681,-500.0,0.00021008,2]
[314416555,1708322381702,-1743.04427453,0.00021008,2]
[314416556,1708322381722,-500.0,0.00021008,2]
[314416557,1708322381743,-500.0,0.00021008,2]
[314416558,1708322381763,-500.0,0.00021008,2]
[314416559,1708322381783,-500.0,0.00021008,2]
[314416560,1708322381804,-1743.04427453,0.00021008,2]
[314416561,1708322381824,-500.0,0.00021008,2]
[314416562,1708322381845,-229.65932632,0.00021008,2]
[314416563,1708322381866,-1743.04427453,0.00021008,2]
[314416564,1708322381887,-500.0,0.00021008,2]
[314416565,1708322381908,-1743.04427453,0.00021008,2]
[314416566,1708322381929,-1743.04427453,0.00021008,2]
[314416567,1708322381949,-500.0,0.00021008,2]
[314416568,1708322381969,-500.0,0.00021008,2]
[314416569,1708322381991,-500.0,0.00021008,2]
[314416570,1708322382013,-1743.04427453,0.00021008,2]
[314416571,1708322382034,-500.0,0.00021008,2]
[314416572,1708322382054,-500.0,0.00021008,2]
[314416573,1708322382077,-500.0,0.00021008,2]
[314416574,1708322382099,-500.0,0.00021008,2]
[314416575,1708322382121,-1743.04427453,0.00021008,2]
[314416576,1708322382141,-500.0,0.00021008,2]
[314416577,1708322382163,-1743.04427453,0.00021008,2]
[314416578,1708322382184,-500.0,0.00021008,2]
[314416579,1708322382205,-500.0,0.00021008,2]
[314416580,1708322382226,-1743.04427453,0.00021008,2]
[314416581,1708322382247,-446.58941926,0.00021008,2]
[314416582,1708322382268,-1743.04427453,0.00021008,2]
[314416583,1708322382289,-500.0,0.00021008,2]
[314416584,1708322382309,-500.0,0.00021008,2]
[314416585,1708322382331,-1743.04427453,0.00021008,2]
[314416586,1708322382354,-1743.04427453,0.00021008,2]
[314416587,1708322382375,-500.0,0.00021008,2]
[314416588,1708322382395,-500.0,0.00021008,2]
[314416589,1708322382415,-500.0,0.00021008,2]
[314416590,1708322382437,-1743.04427453,0.00021008,2]
[314416591,1708322382460,-500.0,0.00021008,2]
[314416592,1708322382482,-1743.04427453,0.00021008,2]
[314416593,1708322382502,-500.0,0.00021008,2]
[314416594,1708322382522,-1743.04427453,0.00021008,2]
[314416595,1708322382544,-1743.04427453,0.00021008,2]
[314416596,1708322382564,-500.0,0.00021008,2]
[314416597,1708322382586,-1743.04427453,0.00021008,2]
[314416598,1708322382611,-1743.04427453,0.00021008,2]
[314416599,1708322382632,-1743.04427453,0.00021008,2]
[314416600,1708322382654,-1743.04427453,0.00021008,2]
[314416601,1708322382675,-1743.04427453,0.00021008,2]
[314416602,1708322382697,-1743.04427453,0.00021008,2]
[314416603,1708322382718,-500.0,0.00021008,2]
[314416604,1708322382739,-1743.04427453,0.00021008,2]
[314416605,1708322382759,-500.0,0.00021008,2]
[314416606,1708322382780,-1743.04427453,0.00021008,2]
[314416607,1708322382802,-1743.04427453,0.00021008,2]
[314416608,1708322382823,-1743.04427453,0.00021008,2]
[314416609,1708322382844,-1743.04427453,0.00021008,2]
[314416610,1708322382866,-1743.04427453,0.00021008,2]
[314416611,1708322382888,-1743.04427453,0.00021008,2]
[314416612,1708322382908,-1743.04427453,0.00021008,2]
[314416613,1708322382930,-1743.04427453,0.00021008,2]
[314416614,1708322382951,-1743.04427453,0.00021008,2]
[314416615,1708322382973,-1743.04427453,0.00021008,2]
[314416616,1708322382997,-1743.04427453,0.00021008,2]
[314416617,1708322383019,-1743.04427453,0.00021008,2]
[314416618,1708322383130,-1743.04427453,0.00021008,2]
[314416619,1708322383156,-1743.04427453,0.00021008,2]
[314416620,1708322383178,-1743.04427453,0.00021008,2]
[314416621,1708322383198,-1743.04427453,0.00021008,2]
[314416622,1708322383220,-1743.04427453,0.00021008,2]
[314416623,1708322383241,-1743.04427453,0.00021008,2]
[314416624,1708322383263,-1743.04427453,0.00021008,2]
[314416625,1708322383284,-1743.04427453,0.00021008,2]
[314416626,1708322383309,-1743.04427453,0.00021008,2]
[314416627,1708322383330,-1743.04427453,0.00021008,2]
[314416628,1708322383355,-1743.04427453,0.00021008,2]
[314416629,1708322383376,-1743.04427453,0.00021008,2]
[314416630,1708322383397,-1743.04427453,0.00021008,2]
[314416631,1708322383417,-1743.04427453,0.00021008,2]
[314416632,1708322383439,-1743.04427453,0.00021008,2]
[314416633,1708322383461,-1743.04427453,0.00021008,2]
[314416634,1708322383482,-1743.04427453,0.00021008,2]
[314416635,1708322383503,-1699.46816768,0.00021008,2]
[314416636,1708322383524,-1699.46816768,0.00021008,2]
[314416637,1708322383545,-1699.46816768,0.00021008,2]
[314416638,1708322383567,-1699.46816768,0.00021008,2]
[314416639,1708322383588,-1699.46816768,0.00021008,2]
[314416640,1708322383609,-1699.46816768,0.00021008,2]
[314416641,1708322383632,-1699.46816768,0.00021008,2]
[314416642,1708322383659,-1699.46816768,0.00021008,2]
[314416643,1708322383680,-1699.46816768,0.00021008,2]
[314416644,1708322383701,-1699.46816768,0.00021008,2]
[314416645,1708322383722,-1699.46816768,0.00021008,2]
[314416646,1708322383744,-1699.46816768,0.00021008,2]
[314416647,1708322383765,-1699.46816768,0.00021008,2]
[314416648,1708322383786,-1699.46816768,0.00021008,2]
[314416649,1708322383807,-1699.46816768,0.00021008,2]
[314416650,1708322383829,-1699.46816768,0.00021008,2]
[314416651,1708322383851,-1699.46816768,0.00021008,2]
[314416652,1708322383873,-1699.46816768,0.00021008,2]
[314416653,1708322383899,-1699.46816768,0.00021008,2]
[314416654,1708322383921,-1699.46816768,0.00021008,2]
[314416655,1708322383942,-1699.46816768,0.00021008,2]
[314416656,1708322383963,-1699.46816768,0.00021008,2]
[314416657,1708322383987,-1699.46816768,0.00021008,2]
[314416658,1708322384008,-1699.46816768,0.00021008,2]
[314416659,1708322384029,-262.05976402,0.00021009,2]
[314416660,1708322384049,-10340.80094379,0.00021012,2]
[314416852,1708323035597,-524.609802,0.00020148,2]
[314416853,1708323035607,-213.00508366,0.00020148,2]
[314416854,1708323035617,-214.5533514,0.00020149,2]
[314416855,1708323035626,-2549.55507,0.00020312,2]
[314416856,1708323035636,-259.0,0.00021001,2]
[314416857,1708323035645,-1490.31229343,0.00021002,3]
[314416923,1708323041503,-5138.94678575,0.00021002,3]
[314416932,1708323041594,-5509.41321425,0.00021002,3]
[314416933,1708323041603,-226.98395349,0.00021011,2]
[314416934,1708323041612,-640.238389,0.00021011,2]
[314416935,1708323041621,-500.0,0.00021011,2]
[314416936,1708323041630,-202.73720906,0.00021011,2]
[314416937,1708323041639,-88.48931482,0.00021011,2]
[314416938,1708323041653,-411.51068518,0.00021011,2]
[314416939,1708323041662,-500.0,0.00021011,2]
[314416940,1708323041671,-500.0,0.00021011,2]
[314416941,1708323041681,-500.0,0.00021011,2]
[314416942,1708323041690,-500.0,0.00021011,2]
[314416943,1708323041700,-581.07325848,0.00021011,2]
[314416944,1708323041709,-500.0,0.00021011,2]
[314416945,1708323041718,-500.0,0.00021011,2]
[314416946,1708323041727,-271.84326881,0.00021011,2]
[314416947,1708323041736,-500.0,0.00021011,2]
[314416948,1708323041745,-500.0,0.00021011,2]
[314416949,1708323041754,-628.64237913,0.00021011,2]
[314416950,1708323041763,-500.0,0.00021011,2]
[314416951,1708323041772,-500.0,0.00021011,2]
[314416952,1708323041781,-500.0,0.00021011,2]
[314416953,1708323041790,-500.0,0.00021011,2]
[314416954,1708323041799,-500.0,0.00021011,2]
[314416955,1708323041808,-500.0,0.00021011,2]
[314416956,1708323041818,-500.0,0.00021011,2]
[314416957,1708323041827,-500.0,0.00021011,2]
[314416958,1708323041836,-500.0,0.00021011,2]
[314416959,1708323041846,-500.0,0.00021011,2]
[314416960,1708323041856,-500.0,0.00021011,2]
[314416961,1708323041865,-500.0,0.00021011,2]
[314416962,1708323041875,-500.0,0.00021011,2]
[314416963,1708323041885,-500.0,0.00021011,2]
[314416964,1708323041895,-500.0,0.00021011,2]
[314416965,1708323041905,-500.0,0.00021011,2]
[314416966,1708323041915,-500.0,0.00021011,2]
[314416967,1708323041924,-500.0,0.00021011,2]
[314416968,1708323041935,-500.0,0.00021011,2]
[314416969,1708323041945,-500.0,0.00021011,2]
[314416970,1708323041954,-500.0,0.00021011,2]
[314416971,1708323041964,-500.0,0.00021011,2]
[314416972,1708323041973,-500.0,0.00021011,2]
[314416973,1708323041983,-500.0,0.00021011,2]
[314416974,1708323041993,-500.0,0.00021011,2]
[314416975,1708323042003,-500.0,0.00021011,2]
[314416976,1708323042012,-85042.17477208,0.00021012,2]
[314416977,1708323042312,-21317.7173718,0.00021012,2]
[314417002,1708323043708,-360.95761023,0.00021011,2]
[314417004,1708323043717,-267.29616816,0.00021011,2]
[314417006,1708323043727,-300.0,0.00021011,2]
[314417007,1708323043736,-3059.92585048,0.00021012,2]
[314417085,1708323048484,-581.81948426,0.00021012,2]
[314417228,1708323050254,-1428.3282817,0.00021012,2]
[314417231,1708323086384,521.00081146,0.00015758,2]
[314417232,1708323100376,521.00081146,0.00015758,2]
[314417233,1708323114999,521.00081146,0.00015758,2]
[314417234,1708323131004,521.00081146,0.00015758,2]
[314417235,1708323242275,1744.94307946,0.00018912,2]
[314417237,1708323532962,500.0,0.000195,2]
[314417238,1708323843417,1163.29538631,0.00018912,2]
[314417345,1708324232530,-281.14321078,0.00020201,2]
[314417347,1708324232540,-324.61640443,0.00020202,2]
[314417349,1708324232550,-925.42983751,0.00020209,2]
[314417351,1708324232560,-2750.17430634,0.00020213,2]
[314417353,1708324232569,-462.90673989,0.0002101,2]
[314417355,1708324232578,-497.65199188,0.0002101,2]
[314417357,1708324232587,-348.7325789,0.00021011,2]
[314417359,1708324232598,-197.73204865,0.00021602,2]
[314417361,1708324232608,-177.82123,0.00021603,2]
[314417363,1708324232617,-169.890415,0.00021977,2]
[314417365,1708324232626,-427.92197084,0.00022153,2]
[314417367,1708324232635,-24900.0,0.00022154,2]
[314417369,1708324232644,-172.26792158,0.000229,2]
[314417371,1708324232653,-154.2762618,0.00023014,2]
[314417373,1708324232663,-153.0,0.00023014,2]
[314417375,1708324232672,-153.0,0.00023014,2]
[314417377,1708324232682,-153.0,0.00023014,2]
[314417379,1708324232691,-153.0,0.00023014,2]
[314417381,1708324232701,-153.0,0.00023014,2]
[314417383,1708324232710,-153.0,0.00023014,2]
[314417385,1708324232721,-153.0,0.00023014,2]
[314417387,1708324232730,-153.0,0.00023014,2]
[314417390,1708324232742,-153.0,0.00023014,2]
[314417392,1708324232751,-153.0,0.00023014,2]
[314417409,1708324232905,-153.0,0.00023014,2]
[314417411,1708324232915,-200.3472215,0.00023014,2]
[314417413,1708324232924,-153.0,0.00023056,2]
[314417415,1708324232933,-153.0,0.00023056,2]
[314417417,1708324232941,-153.0,0.00023056,2]
[314417419,1708324232950,-153.0,0.00023056,2]
[314417421,1708324232960,-153.0,0.00023056,2]
[314417423,1708324232970,-153.0,0.000231,2]
[314417425,1708324232979,-153.0,0.000231,2]
[314417427,1708324232988,-153.0,0.00023156,2]
[314417429,1708324232997,-153.0,0.00023156,2]
[314417431,1708324233006,-153.0,0.00023156,2]
[314417433,1708324233015,-153.0,0.00023156,2]
[314417435,1708324233024,-153.0,0.00023356,2]
[314417437,1708324233033,-153.0,0.00023836,2]
[314417439,1708324233043,-153.0,0.00023836,2]
[314417441,1708324233052,-200.3472215,0.00023836,2]
[314417443,1708324233062,-399.1694192,0.00023836,2]
[314417445,1708324233071,-200.3472215,0.00023836,2]
[314417447,1708324233081,-153.0,0.00023836,2]
[314417449,1708324233090,-200.3472215,0.00023836,2]
[314417451,1708324233100,-153.0,0.00023836,2]
[314417453,1708324233110,-153.0,0.00023836,2]
[314417455,1708324233119,-200.3472215,0.00023836,2]
[314417457,1708324233128,-200.3472215,0.00023836,2]
[314417459,1708324233137,-200.3472215,0.00023836,2]
[314417461,1708324233147,-153.0,0.00023836,2]
[314417463,1708324233156,-153.0,0.00023836,2]
[314417465,1708324233166,-200.3472215,0.00023836,2]
[314417467,1708324233175,-153.0,0.00023836,2]
[314417469,1708324233184,-200.3472215,0.00023836,2]
[314417471,1708324233192,-200.3472215,0.00023836,2]
[314417472,1708324233201,-153.0,0.00023836,2]
[314417474,1708324233210,-200.3472215,0.00023836,2]
[314417476,1708324233221,-200.3472215,0.00023836,2]
[314417477,1708324233230,-200.3472215,0.00023836,2]
[314417479,1708324233239,-200.3472215,0.00023836,2]
[314417480,1708324233251,-200.3472215,0.00023836,2]
[314417481,1708324233260,-307.8273952,0.00023836,2]
[314417482,1708324233270,-200.3472215,0.00023836,2]
[314417483,1708324233279,-153.0,0.00023836,2]
[314417484,1708324233288,-203.5495988,0.00023836,2]
[314417485,1708324233297,-200.3472215,0.00023836,2]
[314417486,1708324233307,-153.0,0.00023836,2]
[314417487,1708324233316,-200.3836121,0.00023836,2]
[314417488,1708324233325,-153.0,0.00023836,2]
[314417489,1708324233337,-153.6753708,0.00023836,2]
[314417490,1708324233347,-4639.91,0.00023882,3]
[314417491,1708324233356,-50000.0,0.00023892,2]
[314417492,1708324233365,-1163.29538631,0.00023912,2]
[314417493,1708324233374,-25343.45510558,0.00024,2]
[314417509,1708324240257,-928.0,0.000229,2]
[314417510,1708324240267,-983.16934205,0.00024,2]
[314417511,1708324240278,-5575.13089873,0.00024,2]
[314417574,1708324243532,-2683.88864671,0.00024,2]
[314417576,1708324243544,-2556.3237075,0.00024,2]
[314417582,1708324243591,-147657.48148143,0.00024,2]
[314417584,1708324243602,-500.0,0.00024069,2]
[314417586,1708324243611,-500.0,0.00024069,2]
[314417588,1708324243621,-162.86423791,0.00024069,2]
[314417590,1708324243631,-500.0,0.00024069,2]
[314417592,1708324243640,-630.39433659,0.00024069,2]
[314417594,1708324243651,-168047.07967124,0.0002407,2]
[314417596,1708324243661,-50000.0,0.0002417,2]
[314417598,1708324243670,-1068.61145758,0.00024438,3]
[314417600,1708324243681,-174134.97925685,0.00024438,2]
[314417602,1708324243690,-300.0,0.00024443,2]
[314417604,1708324243699,-25164.98393899,0.00024535,2]
[314417606,1708324243709,-692.05987878,0.00024658,2]
[314417607,1708324243719,-166.666666,0.00024658,2]
[314417609,1708324243729,-280.0,0.00024658,2]
[314417611,1708324243739,-153.0,0.00024658,2]
[314417612,1708324243748,-153.0,0.00024658,2]
[314417614,1708324243757,-308.5108259,0.00024658,2]
[314417616,1708324243766,-153.0,0.00024658,2]
[314417618,1708324243776,-153.0,0.00024658,2]
[314417620,1708324243785,-82851.0,0.00024689,2]
[314417622,1708324243794,-2830.08478311,0.00024716,2]
[314417624,1708324243803,-12218.95551359,0.000248,2]
[314417627,1708324243812,-300.0,0.00024816,2]
[314417628,1708324243822,-162.01601574,0.00024998,2]
[314417630,1708324243831,-507.7128774,0.00025,2]
[314417632,1708324243840,-10550.7482,0.00025,2]
[314417634,1708324243849,-4744.51264344,0.00025,2]
[314417636,1708324243858,-185.94821686,0.00025,2]
[314417638,1708324243867,-5095.5365824,0.00025,10]
[314417640,1708324243876,-300.0,0.0002519,2]
[314417642,1708324243885,-153.0,0.00025205,2]
[314417644,1708324243893,-153.0,0.00025205,2]
[314417646,1708324243903,-153.0,0.00025205,2]
[314417648,1708324243912,-153.0,0.00025205,2]
[314417650,1708324243921,-153.7262976,0.00025205,2]
[314417652,1708324243930,-166.666666,0.00025235,2]
[314417654,1708324243939,-151.06042417,0.00025277,30]